[Event "FIDE World School-ch G-13 2025"]
[Site "Vrnjacka Banja"]
[Date "2025.03.27"]
[Round "8.1"]
[White "Begmuratova, Sarvinoz"]
[Black "Abylaykyzy, Bibisara"]
[Result "1-0"]
[Annotator "NA RC"]
[ECO "B40"]
[WhiteElo "1808"]
[BlackElo "1651"]
[PlyCount "133"]
[EventDate "2025.03.19"]
[EventType "swiss"]
[EventCountry "SRB"]
[SourceTitle "playchess.com"]
[Source "ChessBase"]
[SourceQuality "1"]
[TimeControl "5400+30"]

1. e4 {[%emt 0:00:01]} c5 {[%emt 0:01:27]} 2. Nf3 {[%emt 0:00:07]} e6 {[%emt 0:00:08]} 3. g3 {[%emt 0:00:06]} Nc6 {[%emt 0:00:12]} 4. Bg2 {[%emt 0:00:07]} Nf6 {[%emt 0:00:11]} 5. Qe2 {[%emt 0:00:05]} d5 {[%emt 0:00:59]} 6. exd5 {[%emt 0:00:26]} Nxd5 {[%emt 0:00:11]} 7. O-O {[%emt 0:00:09]} Be7 {[%emt 0:00:12]} 8. Rd1 {[%emt 0:00:35]} Qb6 {[%emt 0:00:26]} 9. Nc3 {[%emt 0:08:14]} O-O {[%emt 0:06:43]} 10. Ne4 {[%emt 0:06:22]} Nd4 {[%emt 0:03:59]} 11. Nxd4 {[%emt 0:02:30]} cxd4 {[%emt 0:00:08]} 12. d3 {[%emt 0:00:47]} Bd7 {[%emt 0:02:00]} 13. Nd2 {[%emt 0:05:20]} Qc5 {[%emt 0:06:20]} 14. Nb3 {[%emt 0:01:50]} Qd6 {[%emt 0:02:02]} 15. Nxd4 {[%emt 0:00:59]} Bf6 {[%emt 0:00:14]} 16. Nb3 {[%emt 0:00:39]} Qc7 {[%emt 0:05:11]} 17. d4 {[%emt 0:03:42]} Rac8 {[%emt 0:07:27]} 18. Nc5 {[%emt 0:01:55]} Be8 {[%emt 0:03:06]} 19. c4 {[%emt 0:03:55]} Bxd4 {[%emt 0:05:57]} 20. Rxd4 {[%emt 0:07:01]} Qxc5 {[%emt 0:01:09]} 21. Rh4 {[%emt 0:00:43]} Nb6 {[%emt 0:09:17]} 22. Bxb7 {[%emt 0:03:58]} Rc7 {[%emt 0:01:01]} 23. Be3 {[%emt 0:00:25]} Qe7 {[%emt 0:01:27]} 24. Bg2 {[%emt 0:06:47]} f5 {[%emt 0:04:32]} 25. Re1 {[%emt 0:07:58]} Bf7 {[%emt 0:08:53]} 26. c5 {[%emt 0:07:57]} Nd5 {[%emt 0:01:00]} 27. Bd4 {[%emt 0:00:13]} Qd7 {[%emt 0:02:20]} 28. Qe5 {[%emt 0:01:07]} Nf6 {[%emt 0:03:10]} 29. c6 {[%emt 0:02:58]} Rxc6 {[%emt 0:07:10]} 30. Bxc6 {[%emt 0:00:05]} Qxc6 {[%emt 0:00:05]} 31. Qc5 {[%emt 0:01:05]} Qxc5 {[%emt 0:05:12]} 32. Bxc5 {[%emt 0:00:04]} Rc8 {[%emt 0:00:05]} 33. Bxa7 {[%emt 0:01:38]} Ne4 {[%emt 0:00:57]} 34. Rd1 {[%emt 0:14:29]} g5 {[%emt 0:02:13]} 35. Rh6 {[%emt 0:00:03]} Kg7 {[%emt 0:00:38]} 36. Rd7 {[%emt 0:00:11]} Kxh6 {[%emt 0:02:45]} 37. Rxf7 {[%emt 0:00:04]} Kg6 {[%emt 0:03:25]} 38. Re7 {[%emt 0:02:15]} f4 {[%emt 0:02:57]} 39. Kg2 {[%emt 0:04:10]} fxg3 {[%emt 0:00:56]} 40. hxg3 {[%emt 0:00:52]} Rc6 {[%emt 0:02:21]} 41. Bd4 {[%emt 0:02:17]} Rd6 {[%emt 0:00:14]} 42. Be3 {[%emt 0:00:31]} h5 {[%emt 0:00:18]} 43. Kf3 {[%emt 0:01:05]} Nf6 {[%emt 0:00:46]} 44. b4 {[%emt 0:01:47]} g4+ {[%emt 0:00:40]} 45. Ke2 {[%emt 0:00:40]} Nd5 {[%emt 0:00:21]} 46. Ra7 {[%emt 0:02:32]} Nxb4 {[%emt 0:00:42]} 47. Bc5 {[%emt 0:00:03]} Ra6 {[%emt 0:00:04]} 48. Rxa6 {[%emt 0:00:04]} Nxa6 {[%emt 0:00:04]} 49. Bd6 {[%emt 0:00:04]} Kf6 {[%emt 0:01:16]} 50. Kd3 {[%emt 0:00:09]} e5 {[%emt 0:00:04]} 51. Ke4 {[%emt 0:00:38]} Ke6 {[%emt 0:00:15]} 52. Bxe5 {[%emt 0:00:04]} Nb4 {[%emt 0:00:59]} 53. a4 {[%emt 0:01:38]} Nd5 {[%emt 0:00:57]} 54. a5 {[%emt 0:01:11]} Nb4 {[%emt 0:00:14]} 55. Bc3 {[%emt 0:00:07]} Nd5 {[%emt 0:00:07]} 56. Bd2 {[%emt 0:00:28]} Nc7 {[%emt 0:00:49]} 57. Kd4 {[%emt 0:00:47]} Na6 {[%emt 0:00:49]} 58. Kc4 {[%emt 0:00:13]} Kd6 {[%emt 0:00:23]} 59. Kb5 {[%emt 0:00:17]} Nc7+ {[%emt 0:00:06]} 60. Kb6 {[%emt 0:00:10]} Nd5+ {[%emt 0:00:09]} 61. Kb7 {[%emt 0:00:21]} Kd7 {[%emt 0:00:46]} 62. a6 {[%emt 0:00:06]} Nc7 {[%emt 0:00:13]} 63. a7 {[%emt 0:00:06]} Na8 {[%emt 0:00:22]} 64. Kxa8 {[%emt 0:00:31]} Kc8 {[%emt 0:00:04]} 65. Bf4 {[%emt 0:00:04]} h4 {[%emt 0:00:06]} 66. gxh4 {[%emt 0:00:02]} g3 {[%emt 0:00:12]} 67. fxg3 {[%emt 0:00:03]} 1-0

[Event "FIDE World School-ch G-13 2025"]
[Site "Vrnjacka Banja"]
[Date "2025.03.27"]
[Round "8.2"]
[White "Amanzhol, Khanzada"]
[Black "Gaer, Sofiya Ig"]
[Result "0-1"]
[Annotator "NA RC"]
[ECO "C01"]
[WhiteElo "1908"]
[BlackElo "1733"]
[PlyCount "78"]
[EventDate "2025.03.19"]
[EventType "swiss"]
[EventCountry "SRB"]
[SourceTitle "playchess.com"]
[Source "ChessBase"]
[SourceQuality "1"]
[TimeControl "5400+30"]

1. e4 {[%emt 0:00:16]} e6 {[%emt 0:00:11]} 2. d4 {[%emt 0:00:06]} d5 {[%emt 0:00:04]} 3. exd5 {[%emt 0:00:05]} exd5 {[%emt 0:00:06]} 4. Bf4 {[%emt 0:00:10]} Nf6 {[%emt 0:00:50]} 5. Nc3 {[%emt 0:00:19]} c6 {[%emt 0:02:22]} 6. Qd2 {[%emt 0:00:27]} Bb4 {[%emt 0:03:21]} 7. O-O-O {[%emt 0:01:28]} O-O {[%emt 0:01:49]} 8. f3 {[%emt 0:00:21]} Qa5 {[%emt 0:03:15]} 9. Nge2 {[%emt 0:01:00]} b5 {[%emt 0:01:00]} 10. Kb1 {[%emt 0:04:04]} Nbd7 {[%emt 0:03:42]} 11. a3 {[%emt 0:05:58]} Bxc3 {[%emt 0:05:46]} 12. Nxc3 {[%emt 0:00:22]} Qd8 {[%emt 0:05:42]} 13. g4 {[%emt 0:04:26]} Nb6 {[%emt 0:03:07]} 14. h4 {[%emt 0:02:34]} Nc4 {[%emt 0:06:50]} 15. Bxc4 {[%emt 0:01:19]} dxc4 {[%emt 0:00:55]} 16. Bg5 {[%emt 0:04:07]} Qd6 {[%emt 0:02:02]} 17. h5 {[%emt 0:16:43]} Nd5 {[%emt 0:07:00]} 18. Ne4 {[%emt 0:05:51]} Qc7 {[%emt 0:02:00]} 19. h6 {[%emt 0:01:28]} g6 {[%emt 0:02:11]} 20. Bf6 {[%emt 0:07:15]} Re8 {[%emt 0:09:10]} 21. Bg7 {[%emt 0:03:22]} f5 {[%emt 0:10:04]} 22. gxf5 {[%emt 0:06:10]} Bxf5 {[%emt 0:00:37]} 23. Nf6+ {[%emt 0:04:01]} Nxf6 {[%emt 0:00:58]} 24. Bxf6 {[%emt 0:00:02]} Qf7 {[%emt 0:02:14]} 25. Be5 {[%emt 0:05:15]} a5 {[%emt 0:02:38]} 26. Rhe1 {[%emt 0:03:41]} Red8 {[%emt 0:04:40]} 27. Ka1 {[%emt 0:07:06]} b4 {[%emt 0:05:05]} 28. Re2 {[%emt 0:03:35]} c3 {[%emt 0:06:53]} 29. bxc3 {[%emt 0:04:09]} Qc4 {[%emt 0:00:18]} 30. Bf6 {[%emt 0:02:20]} Re8 {[%emt 0:03:54]} 31. Rxe8+ {[%emt 0:02:24]} Rxe8 {[%emt 0:00:01]} 32. Re1 {[%emt 0:00:30]} Be6 {[%emt 0:05:03]} 33. d5 {[%emt 0:00:30]} Bxd5 {[%emt 0:01:37]} 34. Rxe8+ {[%emt 0:01:23]} Kf7 {[%emt 0:00:00]} 35. Re7+ {[%emt 0:04:34]} Kxf6 {[%emt 0:00:01]} 36. Re6+ {[%emt 0:00:35]} Kxe6 {[%emt 0:01:01]} 37. Qe3+ {[%emt 0:00:26]} Kf6 {[%emt 0:00:14]} 38. Kb1 {[%emt 0:00:28]} bxc3 {[%emt 0:00:36]} 39. Qb6 {[%emt 0:00:37]} Qf1# {[%emt 0:00:20]} 0-1

[Event "FIDE World School-ch G-13 2025"]
[Site "Vrnjacka Banja"]
[Date "2025.03.27"]
[Round "8.3"]
[White "Smirnova, Viktoria A"]
[Black "Tereshchenko, Eliza"]
[Result "1-0"]
[Annotator "NA RC"]
[ECO "E05"]
[WhiteElo "1671"]
[BlackElo "1751"]
[PlyCount "79"]
[EventDate "2025.03.19"]
[EventType "swiss"]
[EventCountry "SRB"]
[SourceTitle "playchess.com"]
[Source "ChessBase"]
[SourceQuality "1"]
[TimeControl "5400+30"]

1. d4 {[%emt 0:00:03]} d5 {[%emt 0:00:08]} 2. c4 {[%emt 0:00:05]} e6 {[%emt 0:00:11]} 3. Nf3 {[%emt 0:00:19]} Nf6 {[%emt 0:00:24]} 4. g3 {[%emt 0:00:41]} Be7 {[%emt 0:00:10]} 5. Bg2 {[%emt 0:01:20]} O-O {[%emt 0:00:31]} 6. O-O {[%emt 0:01:15]} dxc4 {[%emt 0:00:12]} 7. Ne5 {[%emt 0:03:29]} Nc6 {[%emt 0:00:17]} 8. Nxc6 {[%emt 0:02:05]} bxc6 {[%emt 0:00:10]} 9. e3 {[%emt 0:07:10]} Rb8 {[%emt 0:07:20]} 10. Bxc6 {[%emt 0:18:56]} Nd5 {[%emt 0:06:35]} 11. a4 {[%emt 0:26:21]} a6 {[%emt 0:09:52]} 12. Qe2 {[%emt 0:04:52]} Rb4 {[%emt 0:15:07]} 13. e4 {[%emt 0:04:12]} Nf6 {[%emt 0:04:10]} 14. Rd1 {[%emt 0:03:49]} Bd7 {[%emt 0:11:44]} 15. Bxd7 {[%emt 0:01:46]} Qxd7 {[%emt 0:00:06]} 16. Nc3 {[%emt 0:02:40]} Rfb8 {[%emt 0:04:56]} 17. Rb1 {[%emt 0:03:57]} Qc8 {[%emt 0:07:42]} 18. Qc2 {[%emt 0:03:14]} Qd7 {[%emt 0:06:07]} 19. Qe2 {[%emt 0:03:38]} Qe8 {[%emt 0:04:45]} 20. Bf4 {[%emt 0:00:55]} R8b7 {[%emt 0:02:12]} 21. Rd2 {[%emt 0:01:58]} Nd7 {[%emt 0:02:37]} 22. Rbd1 {[%emt 0:03:47]} Qb8 {[%emt 0:05:19]} 23. d5 {[%emt 0:01:31]} e5 {[%emt 0:00:25]} 24. Be3 {[%emt 0:00:37]} Nc5 {[%emt 0:04:48]} 25. d6 {[%emt 0:02:22]} cxd6 {[%emt 0:01:49]} 26. Bxc5 {[%emt 0:00:08]} dxc5 {[%emt 0:02:18]} 27. Nd5 {[%emt 0:00:30]} Bf8 {[%emt 0:01:15]} 28. Nxb4 {[%emt 0:00:17]} Rxb4 {[%emt 0:00:08]} 29. Rd8 {[%emt 0:01:12]} Qc7 {[%emt 0:01:24]} 30. Ra8 {[%emt 0:01:21]} Rb8 {[%emt 0:00:58]} 31. Rxa6 {[%emt 0:00:41]} c3 {[%emt 0:01:48]} 32. bxc3 {[%emt 0:00:11]} c4 {[%emt 0:00:01]} 33. Rd5 {[%emt 0:00:56]} Rb3 {[%emt 0:00:51]} 34. Qd2 {[%emt 0:00:22]} g6 {[%emt 0:00:35]} 35. Rd7 {[%emt 0:00:38]} Rb1+ {[%emt 0:00:26]} 36. Kg2 {[%emt 0:00:06]} Qc8 {[%emt 0:00:26]} 37. Raa7 {[%emt 0:00:39]} Qc6 {[%emt 0:00:42]} 38. Qd5 {[%emt 0:00:21]} Qe6 {[%emt 0:00:30]} 39. Qxe6 {[%emt 0:00:17]} fxe6 {[%emt 0:00:01]} 40. Rd8 {[%emt 0:01:49]} 1-0

[Event "FIDE World School-ch G-13 2025"]
[Site "Vrnjacka Banja"]
[Date "2025.03.27"]
[Round "8.4"]
[White "Omirserik, Alima"]
[Black "Mamakova, Aknur"]
[Result "0-1"]
[Annotator "NA RC"]
[ECO "C01"]
[WhiteElo "1814"]
[BlackElo "1797"]
[PlyCount "82"]
[EventDate "2025.03.19"]
[EventType "swiss"]
[EventCountry "SRB"]
[SourceTitle "playchess.com"]
[Source "ChessBase"]
[SourceQuality "1"]
[TimeControl "5400+30"]

1. e4 {[%emt 0:01:18]} e6 {[%emt 0:00:33]} 2. d4 {[%emt 0:00:13]} d5 {[%emt 0:00:24]} 3. Bd3 {[%emt 0:00:03]} dxe4 {[%emt 0:00:25]} 4. Bxe4 {[%emt 0:00:04]} Nf6 {[%emt 0:00:05]} 5. Bf3 {[%emt 0:00:03]} c5 {[%emt 0:00:26]} 6. Ne2 {[%emt 0:00:39]} Be7 {[%emt 0:00:45]} 7. Be3 {[%emt 0:01:44]} O-O {[%emt 0:00:17]} 8. O-O {[%emt 0:00:15]} Qc7 {[%emt 0:01:47]} 9. Nbc3 {[%emt 0:01:28]} Rd8 {[%emt 0:01:34]} 10. Qc1 {[%emt 0:01:43]} Nc6 {[%emt 0:01:40]} 11. Rd1 {[%emt 0:05:43]} cxd4 {[%emt 0:02:11]} 12. Nxd4 {[%emt 0:00:29]} Ne5 {[%emt 0:01:39]} 13. Be2 {[%emt 0:05:16]} Neg4 {[%emt 0:06:08]} 14. Nf3 {[%emt 0:08:08]} Nxe3 {[%emt 0:04:20]} 15. Rxd8+ {[%emt 0:01:24]} Qxd8 {[%emt 0:01:01]} 16. Qxe3 {[%emt 0:00:37]} Bd7 {[%emt 0:03:52]} 17. Ne5 {[%emt 0:02:12]} Be8 {[%emt 0:01:41]} 18. h3 {[%emt 0:04:57]} Qc7 {[%emt 0:02:25]} 19. Bf3 {[%emt 0:06:36]} Bc5 {[%emt 0:03:42]} 20. Qe2 {[%emt 0:00:35]} Bd4 {[%emt 0:01:45]} 21. Re1 {[%emt 0:05:53]} Rc8 {[%emt 0:06:27]} 22. Ng4 {[%emt 0:04:25]} Nxg4 {[%emt 0:03:12]} 23. hxg4 {[%emt 0:00:50]} Bxc3 {[%emt 0:00:41]} 24. bxc3 {[%emt 0:00:09]} b5 {[%emt 0:01:25]} 25. Be4 {[%emt 0:05:53]} Qxc3 {[%emt 0:01:25]} 26. Bd3 {[%emt 0:01:45]} a6 {[%emt 0:04:15]} 27. Qe4 {[%emt 0:07:59]} g6 {[%emt 0:01:26]} 28. Rb1 {[%emt 0:02:24]} Bc6 {[%emt 0:01:49]} 29. Qe3 {[%emt 0:07:25]} Bd5 {[%emt 0:02:43]} 30. Qc1 {[%emt 0:05:16]} Bxa2 {[%emt 0:00:54]} 31. Ra1 {[%emt 0:00:57]} Bd5 {[%emt 0:00:16]} 32. Ra3 {[%emt 0:01:23]} Qd4 {[%emt 0:00:55]} 33. Qg5 {[%emt 0:03:04]} Bb7 {[%emt 0:01:34]} 34. Rb3 {[%emt 0:08:33]} Kg7 {[%emt 0:06:16]} 35. Qe7 {[%emt 0:03:03]} Bd5 {[%emt 0:06:57]} 36. Ra3 {[%emt 0:00:31]} Qxg4 {[%emt 0:04:44]} 37. Bf1 {[%emt 0:01:49]} Rxc2 {[%emt 0:00:50]} 38. Qa7 {[%emt 0:00:27]} Rc1 {[%emt 0:00:16]} 39. f3 {[%emt 0:01:50]} Qc4 {[%emt 0:00:15]} 40. Qf2 {[%emt 0:00:14]} Rxf1+ {[%emt 0:01:26]} 41. Qxf1 {[%emt 0:00:20]} Qc5+ {[%emt 0:00:04]} 0-1

[Event "FIDE World School-ch G-13 2025"]
[Site "Vrnjacka Banja"]
[Date "2025.03.27"]
[Round "8.5"]
[White "Xu, Luna Yuexiu"]
[Black "Enkhzaya, Zagas-Erdene"]
[Result "0-1"]
[Annotator "NA RC"]
[ECO "C30"]
[WhiteElo "1901"]
[BlackElo "1801"]
[PlyCount "144"]
[EventDate "2025.03.19"]
[EventType "swiss"]
[EventCountry "SRB"]
[SourceTitle "playchess.com"]
[Source "ChessBase"]
[SourceQuality "1"]
[TimeControl "5400+30"]

1. e4 {[%emt 0:00:03]} e5 {[%emt 0:00:02]} 2. Nc3 {[%emt 0:00:15]} Nf6 {[%emt 0:01:11]} 3. f4 {[%emt 0:00:23]} d6 {[%emt 0:29:52]} 4. Nf3 {[%emt 0:00:55]} Bg4 {[%emt 0:01:52]} 5. Be2 {[%emt 0:03:24]} Nc6 {[%emt 0:02:25]} 6. O-O {[%emt 0:02:52]} Be7 {[%emt 0:04:24]} 7. Bb5 {[%emt 0:02:23]} O-O {[%emt 0:01:56]} 8. Bxc6 {[%emt 0:02:29]} bxc6 {[%emt 0:00:01]} 9. d4 {[%emt 0:03:32]} exd4 {[%emt 0:01:14]} 10. Qxd4 {[%emt 0:00:42]} d5 {[%emt 0:02:49]} 11. e5 {[%emt 0:03:28]} Nd7 {[%emt 0:00:21]} 12. Kh1 {[%emt 0:01:48]} Rb8 {[%emt 0:06:50]} 13. a3 {[%emt 0:06:18]} Bf5 {[%emt 0:02:16]} 14. Be3 {[%emt 0:01:47]} Bxc2 {[%emt 0:04:41]} 15. Qd2 {[%emt 0:02:48]} Bb3 {[%emt 0:01:06]} 16. Bxa7 {[%emt 0:00:48]} Rb7 {[%emt 0:00:11]} 17. Bg1 {[%emt 0:01:10]} Bc4 {[%emt 0:01:27]} 18. Rfe1 {[%emt 0:01:59]} Nb6 {[%emt 0:00:50]} 19. Nd4 {[%emt 0:04:51]} Qe8 {[%emt 0:04:18]} 20. b3 {[%emt 0:01:29]} c5 {[%emt 0:04:59]} 21. bxc4 {[%emt 0:01:46]} Nxc4 {[%emt 0:00:17]} 22. Qd3 {[%emt 0:00:21]} Nb2 {[%emt 0:01:48]} 23. Qc2 {[%emt 0:00:41]} cxd4 {[%emt 0:00:08]} 24. Nxd5 {[%emt 0:56:18]} d3 {[%emt 0:03:26]} 25. Qc3 {[%emt 0:00:00]} Bh4 {[%emt 0:02:21]} 26. Re4 {[%emt 0:00:00]} Qb5 {[%emt 0:05:38]} 27. Bc5 {[%emt 0:00:00]} d2 {[%emt 0:01:26]} 28. Rb4 {[%emt 0:00:00]} Qe2 {[%emt 0:01:05]} 29. Qf3 {[%emt 0:00:00]} Qe1+ {[%emt 0:09:23]} 30. Qf1 {[%emt 0:00:00]} Rxb4 {[%emt 0:00:31]} 31. Bxb4 {[%emt 0:00:00]} Qxa1 {[%emt 0:01:16]} 32. Qxa1 {[%emt 0:00:00]} d1=Q+ {[%emt 0:00:10]} 33. Qxd1 {[%emt 0:00:00]} Nxd1 {[%emt 0:00:01]} 34. Bxf8 {[%emt 0:00:00]} Kxf8 {[%emt 0:00:01]} 35. Nxc7 {[%emt 0:00:00]} Nc3 {[%emt 0:00:42]} 36. g4 {[%emt 0:00:00]} Bd8 {[%emt 0:00:31]} 37. Na6 {[%emt 0:00:00]} Be7 {[%emt 0:00:03]} 38. Nb8 {[%emt 0:00:00]} Bxa3 {[%emt 0:00:34]} 39. Nd7+ {[%emt 0:00:00]} Ke7 {[%emt 0:00:02]} 40. Nb6 {[%emt 0:00:00]} Bc1 {[%emt 0:01:21]} 41. f5 {[%emt 0:00:00]} Bf4 {[%emt 0:00:12]} 42. Nc4 {[%emt 0:00:00]} Nd1 {[%emt 0:00:18]} 43. h3 {[%emt 0:00:00]} Ne3 {[%emt 0:00:13]} 44. Nb2 {[%emt 0:00:00]} Bxe5 {[%emt 0:00:04]} 45. Nd3 {[%emt 0:00:00]} Bd6 {[%emt 0:00:13]} 46. Kg1 {[%emt 0:00:00]} Bg3 {[%emt 0:01:06]} 47. Nc1 {[%emt 0:00:00]} h5 {[%emt 0:01:06]} 48. Ne2 {[%emt 0:00:00]} Bh4 {[%emt 0:00:11]} 49. Kh2 {[%emt 0:00:00]} Bf2 {[%emt 0:00:15]} 50. gxh5 {[%emt 0:00:00]} Nxf5 {[%emt 0:00:06]} 51. Kg2 {[%emt 0:00:00]} Bh4 {[%emt 0:00:56]} 52. Kf3 {[%emt 0:00:00]} Kf6 {[%emt 0:00:19]} 53. Kg4 {[%emt 0:00:00]} Bg5 {[%emt 0:00:14]} 54. Nc3 {[%emt 0:00:00]} Nh6+ {[%emt 0:00:10]} 55. Kf3 {[%emt 0:00:00]} Ke5 {[%emt 0:00:20]} 56. Ne4 {[%emt 0:00:00]} Be7 {[%emt 0:00:05]} 57. Nf2 {[%emt 0:00:00]} Kf5 {[%emt 0:00:04]} 58. Ne4 {[%emt 0:00:00]} Bh4 {[%emt 0:00:21]} 59. Nd6+ {[%emt 0:00:00]} Kg5 {[%emt 0:00:05]} 60. Nxf7+ {[%emt 0:00:00]} Nxf7 {[%emt 0:00:08]} 61. h6 {[%emt 0:00:00]} Nxh6 {[%emt 0:01:34]} 62. Ke3 {[%emt 0:00:00]} Nf7 {[%emt 0:00:06]} 63. Kf3 {[%emt 0:00:00]} Kf5 {[%emt 0:00:03]} 64. Ke3 {[%emt 0:00:00]} Ne5 {[%emt 0:00:10]} 65. Ke2 {[%emt 0:00:00]} Ke4 {[%emt 0:00:03]} 66. Kf1 {[%emt 0:00:00]} Kf3 {[%emt 0:00:02]} 67. Kg1 {[%emt 0:00:00]} Bf2+ {[%emt 0:00:07]} 68. Kh2 {[%emt 0:00:00]} Nd3 {[%emt 0:00:07]} 69. Kh1 {[%emt 0:00:00]} Kg3 {[%emt 0:00:03]} 70. h4 {[%emt 0:00:00]} Nf4 {[%emt 0:00:24]} 71. h5 {[%emt 0:00:00]} Kh3 {[%emt 0:00:06]} 72. h6 {[%emt 0:00:00]} Ne2 {[%emt 0:00:03]} 0-1

[Event "FIDE World School-ch G-13 2025"]
[Site "Vrnjacka Banja"]
[Date "2025.03.27"]
[Round "8.6"]
[White "Leca Andrei, Anastasia"]
[Black "Akuratiya, A G Hansadie Aradhya"]
[Result "0-1"]
[Annotator "NA RC"]
[ECO "A80"]
[WhiteElo "1805"]
[BlackElo "1629"]
[PlyCount "84"]
[EventDate "2025.03.19"]
[EventType "swiss"]
[EventCountry "SRB"]
[SourceTitle "playchess.com"]
[Source "ChessBase"]
[SourceQuality "1"]
[TimeControl "5400+30"]

1. d4 {[%emt 0:00:04]} f5 {[%emt 0:00:50]} 2. Bg5 {[%emt 0:00:05]} h6 {[%emt 0:00:12]} 3. Bh4 {[%emt 0:00:11]} g5 {[%emt 0:00:07]} 4. Bg3 {[%emt 0:00:22]} Nf6 {[%emt 0:01:39]} 5. e3 {[%emt 0:01:18]} d6 {[%emt 0:01:54]} 6. Bd3 {[%emt 0:03:23]} e6 {[%emt 0:00:57]} 7. c4 {[%emt 0:02:10]} Qe7 {[%emt 0:01:15]} 8. Nf3 {[%emt 0:05:02]} Nc6 {[%emt 0:01:05]} 9. Nfd2 {[%emt 0:05:55]} Bd7 {[%emt 0:02:29]} 10. h3 {[%emt 0:03:19]} O-O-O {[%emt 0:02:19]} 11. a3 {[%emt 0:02:11]} f4 {[%emt 0:05:54]} 12. Bh2 {[%emt 0:03:17]} h5 {[%emt 0:08:06]} 13. Nc3 {[%emt 0:05:25]} Bh6 {[%emt 0:05:47]} 14. Qe2 {[%emt 0:01:51]} g4 {[%emt 0:02:37]} 15. b4 {[%emt 0:05:12]} Rhg8 {[%emt 0:06:28]} 16. b5 {[%emt 0:03:12]} Na5 {[%emt 0:01:38]} 17. Bxf4 {[%emt 0:01:36]} Bxf4 {[%emt 0:02:00]} 18. exf4 {[%emt 0:00:04]} gxh3 {[%emt 0:03:29]} 19. gxh3 {[%emt 0:00:34]} Rg2 {[%emt 0:03:33]} 20. O-O-O {[%emt 0:02:11]} Rdg8 {[%emt 0:06:09]} 21. Kb2 {[%emt 0:02:52]} Qf7 {[%emt 0:05:37]} 22. Qe3 {[%emt 0:05:20]} h4 {[%emt 0:02:32]} 23. Nf3 {[%emt 0:05:23]} Qh5 {[%emt 0:06:09]} 24. Be2 {[%emt 0:04:09]} R8g3 {[%emt 0:02:37]} 25. Kc1 {[%emt 0:27:48]} Nxc4 {[%emt 0:01:02]} 26. Qd3 {[%emt 0:00:42]} Rxf2 {[%emt 0:12:16]} 27. Qxc4 {[%emt 0:00:47]} Rfxf3 {[%emt 0:05:24]} 28. Bxf3 {[%emt 0:00:08]} Qxf3 {[%emt 0:00:17]} 29. Kb2 {[%emt 0:01:28]} Nd5 {[%emt 0:03:23]} 30. Rc1 {[%emt 0:03:29]} Rg2+ {[%emt 0:06:41]} 31. Kb3 {[%emt 0:00:50]} Rg3 {[%emt 0:00:57]} 32. Rhg1 {[%emt 0:01:51]} Nb6 {[%emt 0:00:34]} 33. Rxg3 {[%emt 0:00:20]} hxg3 {[%emt 0:00:29]} 34. Qe2 {[%emt 0:00:37]} Qxf4 {[%emt 0:00:21]} 35. Rd1 {[%emt 0:00:32]} e5 {[%emt 0:00:37]} 36. Rf1 {[%emt 0:00:46]} Be6+ {[%emt 0:00:31]} 37. d5 {[%emt 0:03:00]} Nxd5 {[%emt 0:00:05]} 38. Nxd5 {[%emt 0:00:08]} Bxd5+ {[%emt 0:00:06]} 39. Kb2 {[%emt 0:00:55]} Qd4+ {[%emt 0:00:22]} 40. Kc1 {[%emt 0:00:29]} Qa1+ {[%emt 0:00:30]} 41. Kc2 {[%emt 0:00:31]} Qa2+ {[%emt 0:00:14]} 42. Kd3 {[%emt 0:02:03]} Bc4+ {[%emt 0:00:07]} 0-1